Workbook

Sheet 4.1-Costes base (anual)
A1: Last Update: 08 december 2023
A2: Configuraciones de hora | D2: Configuración de tarifas
A4: Meses/año | B4: 12 | D4: Recuperación de costos fijos | J4: 100%
A5: Promedio de días laborables/mes | B5: 22 | D5: Comisión de gestión | J5: 0%
A6: Promedio de horas de trabajo/día | B6: 8 | D6: Tarifa verde | J6: 0%
A8: Organización participante | D8: ONG 1 | E8: ONG 2 | F8: ONG 3 | G8: ONG 4 | H8: ONG 5 | I8: ONG 6 | J8: Promedio para recuperar
A10: A) Costos fijos a recuperar por duración del viaje (USD/H)*
A12: A1. Alquiler o depreciación del vehículo
A13: Vehículos categoría 1 (coste medio anual): Vehículos ligeros (sedán) | D13: =440*12 -> 5,280.00 | E13: 6,327.00 | F13: 5,400.00 | G13: 4,680.00 | H13: 4,600.00 | I13: 5,100.00 | J13: =SUMPRODUCT(D13:I13, D14:I14) / SUM(D14:I14) / (B4 * B5 * B6) * J4 -> 2.53
A14: Vehículos de categoría 1 (número de vehículos) | D14: 27 | E14: 5 | F14: 12 | G14: 1 | H14: 3 | I14: 4
A16: Vehículos categoría 2 (coste medio anual): Vehículos ligeros (SUV) | D16: =580*12 -> 6,960.00 | E16: 7,659.00 | F16: 7,200.00 | G16: 6,540.00 | H16: 6,000.00 | I16: 6,000.00 | J16: =SUMPRODUCT(D16:I16, D17:I17) / SUM(D17:I17) / (B4 * B5 * B6) * J4 -> 3.11
A17: Vehículos de categoría 2 (número de vehículos) | D17: 31 | E17: 4 | F17: 13 | G17: 7 | H17: 34 | I17: 10
A19: Vehículos categoría 3 (coste medio anual): Monovolumen 10 plazas | D19: =990*12 -> 11,880.00 | J19: =SUMPRODUCT(D19:I19, D20:I20) / SUM(D20:I20) / (B4 * B5 * B6) * J4 -> 5.63
A20: Vehículos de categoría 3 (número de vehículos) | D20: 1
A22: A2. Seguro
A23: Costo anual del seguro por vehículo | J23: =SUMPRODUCT(D23:H23, D24:H24) / SUM(D24:H24) / (B4 * B5 * B6) * J4 -> 0
A24: Número de vehículos ligeros | D24: 50 | E24: 0 | F24: 0
A26: A3. Seguimiento y reserva electrónica
A27: Costo anual de seguimiento y reserva electrónica por vehículo | J27: =SUMPRODUCT(D27:H27, D28:H28) / SUM(D28:H28) / (B4 * B5 * B6) * J4 -> 0
A28: Número de vehículos ligeros | D28: 50 | E28: 30 | F28: 35
A30: A4. Conductor
A31: Impulsores del coste medio anual | D31: 16,800.00 | E31: 13,851.00 | F31: 18,000.00 | G31: 24,360.00 | H31: 18,000.00 | I31: 15,000.00 | J31: =SUMPRODUCT(D31:I31, D32:I32) / SUM(D32:I32) / (B4 * B5 * B6) * J4 -> 8.19
A32: Número de conductores | D32: 60 | E32: 10 | F32: 25 | G32: 8 | H32: 3 | I32: 5
A34: Total
A35: Costos fijos totales (USD/H) | J35: =J13 + J16+J19+J23 + J27 + J31 -> 19.45
A37: B) Costos variables a recuperar por kilometraje de viaje (USD/Km)*
A39: B1. Mantenimiento y reparación
A40: Coste medio anual de mantenimiento y reparación por km | J40: =SUMPRODUCT(D40:H40, D41:H41, D42:H42) / SUMPRODUCT(D41:H41, D42:H42) -> 0
A41: Kilometraje medio anual por vehículo | D41: 24,000.00 | E41: 17,416.00 | F41: 17,261.00 | G41: 10,542.00 | H41: 16,788.00 | I41: 12,250.00
A42: Número de vehículos | D42: =D14+D17 -> 58 | E42: =E14+E17 -> 9 | F42: 25 | G42: 8 | H42: 37 | I42: 14
A44: B2. Combustible
A45: Coste medio anual de combustible por kilómetro | D45: 0.13 | E45: 0.10 | F45: 0.16 | G45: 0.10 | I45: 0.80 | J45: =SUMPRODUCT(D45:I45, D46:I46, D47:I47) / SUMPRODUCT(D46:I46, D47:I47) -> 0.14
A46: Kilometraje medio anual por vehículo | D46: =D41 -> 24,000.00 | E46: =E41 -> 17,416.00 | F46: =F41 -> 17,261.00 | G46: 10,542.00 | H46: 16,788.00 | I46: 12,250.00
A47: Número de vehículos | D47: =D42 -> 58 | E47: =E42 -> 9 | F47: 25 | G47: 8 | H47: 37 | I47: 14
A49: Total
A50: Costos variables totales (USD/KM) | J50: =J40 + J45 -> 0.14
A52: C) Tasas a recuperar
A54: C1. Comisión de gestión
A55: Comisión de gestión de costes fijos (USD/H) | J55: =J35 * J5 -> 0
A56: Comisión de gestión de costos variables (USD/Km) | J56: =J50 * J5 -> 0
A58: C2. Tarifa verde
A59: Green fee sobre costos fijos (USD/H) | J59: =J35 * J6 -> 0
A60: Green fee sobre costos variables (USD/Km) | J60: =J56 * J6 -> 0
A62: C3. Tarifa de proveedor de tecnología
A63: Tarifa fija transaccional por viaje
A64: *todas las cifras reflejan los valores de fin de año a partir de 2023
A66: E) Price examples | B66: Duracion (h) | D66: Kilometraje (km) | E66: Costes fijos | F66: Costes variables costs | G66: Comision gestion | H66: Tarifa verde | I66: Tarifa proveedor tecnologia | J66: Precio total
A67: Payment recipient | E67: Vehicle owning organization | G67: Service Support Coordinator | I67: Technology Supplier
A68: Bekaa Route
A69: cost per km | B69: 0.05 | D69: 1.00 | E69: =$J$35 * B69 -> 0.97 | F69: =$J$50 * D69 -> 0.14 | G69: =$J$55 * B69 + $J$56 * D69 -> 0 | H69: =$J$59 * B69 + $J$60 * D69 -> 0 | I69: =J62 -> 0 | J69: =SUM(E69:I69) -> 1.11
A70: bey-zahle | B70: 1.00 | D70: 66.00 | E70: =$J$35 * B70 -> 19.45 | F70: =$J$50 * D70 -> 9.34 | G70: =$J$55 * B70 + $J$56 * D70 -> 0 | H70: =$J$59 * B70 + $J$60 * D70 -> 0 | I70: =J63 -> 0 | J70: =SUM(E70:I70) -> 28.79 | K70: =J70/D70 -> 0.4362828639
A71: bey-doris | B71: 2.00 | D71: 85.00 | E71: =$J$35 * B71 -> 38.91 | F71: =$J$50 * D71 -> 12.03 | G71: =$J$55 * B71 + $J$56 * D71 -> 0 | H71: =$J$59 * B71 + $J$60 * D71 -> 0 | I71: =J63 -> 0 | J71: =SUM(E71:I71) -> 50.94 | K71: =J71/D71 -> 0.5992708548
A72: bey-baalbeck | B72: 2.00 | D72: 85.00 | E72: 38.91 | F72: 12.03 | J72: =SUM(E72:I72) -> 50.94 | K72: 0.5992708548
A73: bey-hermel | B73: 3.00 | D73: 141.00 | E73: 58.36 | F73: 19.95 | J73: 78.32 | K73: 0.5554433914
A74: bey-alQaa | B74: 2.80 | D74: 133.00 | E74: 54.47 | F74: 18.82 | J74: 73.29 | K74: 0.5510862752
A75: bey-arsal | B75: 2.50 | D75: 120.00 | E75: 48.64 | F75: 16.98 | J75: 65.62 | K75: 0.5468199322
A76: bey-alley | B76: 0.50 | D76: 19.00 | E76: 9.73 | F76: 2.69 | J76: 12.42 | K76: 0.6534785069
E77: 0 | F77: 0 | J77: 0
E78: 0 | F78: 0 | J78: 0
E79: 0 | F79: 0 | J79: 0
E80: 0 | F80: 0 | J80: 0
A81: North Route
A82: bey-tripoli | B82: 1.50 | D82: 80.00 | E82: 29.18 | F82: 11.32 | J82: 40.50 | K82: 0.5062896738
A83: bey-halba | B83: 2.15 | D83: 110.00 | E83: 41.83 | F83: 15.57 | J83: 57.39 | K83: 0.5217648634
A84: bey-kobayat | B84: 2.60 | D84: 137.00 | E84: 50.58 | F84: 19.39 | J84: 69.97 | K84: 0.5107272933
E85: 0 | F85: 0 | J85: 0
A86: bey-jounieh | B86: 0.60 | D86: 20.00 | E86: 11.67 | F86: 2.83 | J86: 14.50 | K86: 0.7251530691
A87: bey-jbeil | B87: 0.90 | D87: 38.00 | E87: 17.51 | F87: 5.38 | J87: 22.89 | K87: 0.6022823911
A88: bey-batroun | B88: 1.10 | D88: 54.20 | E88: 21.40 | F88: 7.67 | J88: 29.07 | K88: 0.5363508618
E89: 0 | F89: 0 | J89: 0
A90: South Route
A91: bey-tyr | B91: 1.30 | D91: 82.00 | E91: 25.29 | F91: 11.60 | J91: 36.90 | K91: 0.4499427292
A92: bey-saida | B92: 0.75 | D92: 44.00 | E92: 14.59 | F92: 6.23 | J92: 20.82 | K92: 0.4731285533
A93: bey-nabatieh | B93: 1.15 | D93: 74.00 | E93: 22.37 | F93: 10.47 | J93: 32.84 | K93: 0.4438511676
E94: 0 | F94: 0 | J94: 0
E95: 0 | F95: 0 | J95: 0
E96: 0 | F96: 0 | J96: 0
E97: 0 | F97: 0 | J97: 0
E98: 0 | F98: 0 | J98: 0
E99: 0 | F99: 0 | J99: 0
A101: F) Viaje compartido
A102: Los viajes que sean compartidos entre Organizaciones Participantes se tasarán según la metodología de este anexo. El importe de la factura se dividirá entonces por el número
A103: de Organizaciones Participantes que comparten el viaje

Sheet 4.2- Recogida de datos
A1: XXX Ruta
A2: Date | B2: Origen | C2: Destino | D2: Hora de salida | E2: Agencia Lead | F2: Pasajero #1 | G2: Pasajero #2 | H2: Pasajero #3 | I2: Pasajero #4 | J2: Pasajero #5 | K2: Pasajero #6 | L2: Pasajero #7 | M2: Pasajero #8 | N2: Pasajero #9 | O2: Pasajero #10 | P2: CARGO/Pequeños documentos | Q2: Commentarios | R2: Estado
R3: Completed
R4: Completed
R5: Completed

Sheet 4.3-Datos no-lanzadera
A1: Date | B1: Origen | C1: Destino | D1: Hora de salida | E1: Agencia Lead | F1: Pasajero #1 | G1: Pasajero #2 | H1: Pasajero #3 | I1: Pasajero #4 | J1: Pasajero #5 | K1: Pasajero #6 | L1: Pasajero #7 | M1: Pasajero #8 | N1: Pasajero #9 | O1: Pasajero #10 | P1: CARGO/Pequeños documentos | Q1: Commentarios | R1: Estado | S1: Coste por organisacion
A2: 2024-01-04 | B2: BEY | C2: ZAH | D2: 08:00:00 | E2: ACF-S | F2: ACF-S | G2: MDM | H2: MDM | Q2: =SUM(IF(FREQUENCY(IF(LEN(SUBSTITUTE(E2:P2, " ", ""))>0, MATCH(SUBSTITUTE(E2:P2, " ", ""), SUBSTITUTE(E2:P2, " ", ""), 0), ""), IF(LEN(SUBSTITUTE(E2:P2, " ", ""))>0, MATCH(SUBSTITUTE(E2:P2, " ", ""), SUBSTITUTE(E2:P2, " ", ""), 0), ""))>0, 1)) -> 2 | R2: =IF(Q2>=2,"Yes","No") -> Yes | S2: =29/Q2 -> 14.5
A3: 2024-01-04 | B3: ZAH | C3: BEY | D3: 14:30:00 | E3: ACF-S | F3: ACF-S | G3: MDM | H3: MDM | Q3: =SUM(IF(FREQUENCY(IF(LEN(SUBSTITUTE(E3:P3, " ", ""))>0, MATCH(SUBSTITUTE(E3:P3, " ", ""), SUBSTITUTE(E3:P3, " ", ""), 0), ""), IF(LEN(SUBSTITUTE(E3:P3, " ", ""))>0, MATCH(SUBSTITUTE(E3:P3, " ", ""), SUBSTITUTE(E3:P3, " ", ""), 0), ""))>0, 1)) -> 2 | R3: =IF(Q3>=2,"Yes","No") -> Yes | S3: =29/Q3 -> 14.5
A4: 2024-01-12 | B4: BEY | C4: ZAH | D4: 08:00:00 | E4: ACF-S | F4: ACF-S | G4: HI-F | Q4: =SUM(IF(FREQUENCY(IF(LEN(SUBSTITUTE(E4:P4, " ", ""))>0, MATCH(SUBSTITUTE(E4:P4, " ", ""), SUBSTITUTE(E4:P4, " ", ""), 0), ""), IF(LEN(SUBSTITUTE(E4:P4, " ", ""))>0, MATCH(SUBSTITUTE(E4:P4, " ", ""), SUBSTITUTE(E4:P4, " ", ""), 0), ""))>0, 1)) -> 2 | R4: Yes | S4: 14.5
A5: 2024-01-12 | B5: ZAH | C5: BEY | D5: 14:30:00 | E5: ACF-S | F5: ACF-S | Q5: =SUM(IF(FREQUENCY(IF(LEN(SUBSTITUTE(E5:P5, " ", ""))>0, MATCH(SUBSTITUTE(E5:P5, " ", ""), SUBSTITUTE(E5:P5, " ", ""), 0), ""), IF(LEN(SUBSTITUTE(E5:P5, " ", ""))>0, MATCH(SUBSTITUTE(E5:P5, " ", ""), SUBSTITUTE(E5:P5, " ", ""), 0), ""))>0, 1)) -> 1 | R5: No | S5: 29
A6: 2024-01-26 | B6: BEY | C6: ZAH | D6: 09:30:00 | E6: HI-F | F6: HI-F | Q6: =SUM(IF(FREQUENCY(IF(LEN(SUBSTITUTE(E6:P6, " ", ""))>0, MATCH(SUBSTITUTE(E6:P6, " ", ""), SUBSTITUTE(E6:P6, " ", ""), 0), ""), IF(LEN(SUBSTITUTE(E6:P6, " ", ""))>0, MATCH(SUBSTITUTE(E6:P6, " ", ""), SUBSTITUTE(E6:P6, " ", ""), 0), ""))>0, 1)) -> 1 | R6: No | S6: 29
A7: 2024-01-26 | B7: ZAH | C7: BEY | D7: 12:30:00 | E7: HI-F | F7: HI-F | G7: MDM | Q7: =SUM(IF(FREQUENCY(IF(LEN(SUBSTITUTE(E7:P7, " ", ""))>0, MATCH(SUBSTITUTE(E7:P7, " ", ""), SUBSTITUTE(E7:P7, " ", ""), 0), ""), IF(LEN(SUBSTITUTE(E7:P7, " ", ""))>0, MATCH(SUBSTITUTE(E7:P7, " ", ""), SUBSTITUTE(E7:P7, " ", ""), 0), ""))>0, 1)) -> 2 | R7: Yes | S7: 14.5
A8: 2024-01-29 | B8: BEY | C8: ALE | D8: 09:30:00 | E8: HI-F | F8: HI-F | G8: ACF-S | H8: SI | Q8: =SUM(IF(FREQUENCY(IF(LEN(SUBSTITUTE(E8:P8, " ", ""))>0, MATCH(SUBSTITUTE(E8:P8, " ", ""), SUBSTITUTE(E8:P8, " ", ""), 0), ""), IF(LEN(SUBSTITUTE(E8:P8, " ", ""))>0, MATCH(SUBSTITUTE(E8:P8, " ", ""), SUBSTITUTE(E8:P8, " ", ""), 0), ""))>0, 1)) -> 3 | R8: Yes | S8: 9.666666667
A9: 2024-01-29 | B9: ALE | C9: BEY | D9: 12:30:00 | E9: HI-F | F9: HI-F | G9: ACF-S | H9: SI | Q9: =SUM(IF(FREQUENCY(IF(LEN(SUBSTITUTE(E9:P9, " ", ""))>0, MATCH(SUBSTITUTE(E9:P9, " ", ""), SUBSTITUTE(E9:P9, " ", ""), 0), ""), IF(LEN(SUBSTITUTE(E9:P9, " ", ""))>0, MATCH(SUBSTITUTE(E9:P9, " ", ""), SUBSTITUTE(E9:P9, " ", ""), 0), ""))>0, 1)) -> 3 | R9: Yes | S9: 9.666666667
A10: 2024-01-30 | B10: BEY | C10: ZAH | D10: 08:00:00 | E10: DRC | F10: DRC | G10: DRC | H10: SI | Q10: =SUM(IF(FREQUENCY(IF(LEN(SUBSTITUTE(E10:P10, " ", ""))>0, MATCH(SUBSTITUTE(E10:P10, " ", ""), SUBSTITUTE(E10:P10, " ", ""), 0), ""), IF(LEN(SUBSTITUTE(E10:P10, " ", ""))>0, MATCH(SUBSTITUTE(E10:P10, " ", ""), SUBSTITUTE(E10:P10, " ", ""), 0), ""))>0, 1)) -> 2 | R10: Yes | S10: 14.5
A11: 2024-01-30 | B11: ZAH | C11: BEY | D11: 14:30:00 | E11: DRC | F11: DRC | G11: DRC | Q11: =SUM(IF(FREQUENCY(IF(LEN(SUBSTITUTE(E11:P11, " ", ""))>0, MATCH(SUBSTITUTE(E11:P11, " ", ""), SUBSTITUTE(E11:P11, " ", ""), 0), ""), IF(LEN(SUBSTITUTE(E11:P11, " ", ""))>0, MATCH(SUBSTITUTE(E11:P11, " ", ""), SUBSTITUTE(E11:P11, " ", ""), 0), ""))>0, 1)) -> 1 | R11: No | S11: 29
A12: 2024-01-31 | B12: BEY | C12: ZAH | D12: 08:00:00 | E12: SI | F12: SI | G12: SI | Q12: =SUM(IF(FREQUENCY(IF(LEN(SUBSTITUTE(E12:P12, " ", ""))>0, MATCH(SUBSTITUTE(E12:P12, " ", ""), SUBSTITUTE(E12:P12, " ", ""), 0), ""), IF(LEN(SUBSTITUTE(E12:P12, " ", ""))>0, MATCH(SUBSTITUTE(E12:P12, " ", ""), SUBSTITUTE(E12:P12, " ", ""), 0), ""))>0, 1)) -> 1 | R12: No | S12: 29
A13: 2024-01-31 | B13: ZAH | C13: BEY | D13: 14:30:00 | E13: SI | F13: SI | G13: SI | H13: DRC | Q13: =SUM(IF(FREQUENCY(IF(LEN(SUBSTITUTE(E13:P13, " ", ""))>0, MATCH(SUBSTITUTE(E13:P13, " ", ""), SUBSTITUTE(E13:P13, " ", ""), 0), ""), IF(LEN(SUBSTITUTE(E13:P13, " ", ""))>0, MATCH(SUBSTITUTE(E13:P13, " ", ""), SUBSTITUTE(E13:P13, " ", ""), 0), ""))>0, 1)) -> 2 | R13: Yes | S13: 14.5

Sheet 4.3-Datos lanzadera
A1: Date | B1: Origen | C1: Destino | D1: Hora de salida | E1: Agencia Lead | F1: Pasajero #1 | G1: Pasajero #2 | H1: Pasajero #3 | I1: Pasajero #4 | J1: Pasajero #5 | K1: Pasajero #6 | L1: Pasajero #7 | M1: Pasajero #8 | N1: Pasajero #9 | O1: Pasajero #10 | P1: CARGO/Pequeños documentos
A2: 2024-01-09 | B2: BEY | C2: ZAH | D2: 08:00:00 | E2: SI | F2: MDM | G2: MDM | H2: MDM | I2: MDM | J2: MDM | K2: MDM | L2: MDM
A3: 2024-01-09 | B3: ZAH | C3: BEY | D3: 14:30:00 | E3: SI | F3: MDM | G3: MDM | H3: MDM | I3: MDM | J3: MDM | K3: MDM | L3: MDM
A4: 2024-01-10 | B4: BEY | C4: ZAH | D4: 08:00:00 | E4: SI | F4: DRC | G4: DRC | H4: ACF-S
A5: 2024-01-10 | B5: ZAH | C5: BEY | D5: 14:30:00 | E5: SI | F5: DRC | G5: DRC | H5: ACF-S | P5: MDM
A6: 2024-01-15 | B6: BEY | C6: ZAH | D6: 08:00:00 | E6: SI | F6: ACF-S | G6: DRC | H6: DRC | I6: DRC | J6: DRC | K6: MDM
A7: 2024-01-15 | B7: ZAH | C7: BEY | D7: 14:30:00 | E7: SI | G7: DRC | H7: DRC | I7: DRC | J7: DRC | K7: MDM
A8: 2024-01-16 | B8: BEY | C8: ZAH | D8: 08:00:00 | E8: SI
A9: 2024-01-16 | B9: ZAH | C9: BEY | D9: 14:30:00 | E9: SI | F9: ACF-S | G9: DRC | P9: MDM
A10: 2024-01-17 | B10: BEY | C10: ZAH | D10: 08:00:00 | E10: SI | F10: ACF-S | G10: ACF-S | H10: DRC | I10: DRC | J10: DRC | K10: MDM | L10: MDM | M10: MDM
A11: 2024-01-17 | B11: ZAH | C11: BEY | D11: 14:30:00 | E11: SI | F11: ACF-S | G11: ACF-S | H11: DRC | I11: DRC | J11: DRC | K11: MDM | L11: MDM
A12: 2024-01-19 | B12: BEY | C12: ZAH | D12: 08:00:00 | E12: SI | F12: MDM | G12: MDM | H12: SI
A13: 2024-01-19 | B13: ZAH | C13: BEY | D13: 14:30:00 | E13: SI | F13: MDM | G13: MDM | H13: ACF-S
A14: 2024-01-22 | B14: BEY | C14: ZAH | D14: 08:00:00 | E14: SI | F14: ACTED
A15: 2024-01-22 | B15: ZAH | C15: BEY | D15: 14:30:00 | E15: SI | F15: ACTED | P15: ACTED
A16: 2024-01-23 | B16: BEY | C16: ZAH | D16: 08:00:00 | E16: SI | F16: SI | G16: MDM | H16: MDM
A17: 2024-01-23 | B17: ZAH | C17: BEY | D17: 14:30:00 | E17: SI | F17: SI | G17: MDM | H17: MDM
A18: 2024-01-24 | B18: BEY | C18: ZAH | D18: 08:00:00 | E18: SI | F18: SI | G18: MDM | H18: MDM
A19: 2024-01-24 | B19: ZAH | C19: BEY | D19: 14:30:00 | E19: SI | F19: SI
A20: 2024-02-02 | B20: BEY | C20: ZAH | D20: 08:00:00 | E20: WVI | F20: SI | G20: SI | H20: SI | I20: SI | J20: SI | K20: SI | L20: WVI | M20: MDM
A21: 2024-02-02 | B21: ZAH | C21: BEY | D21: 14:30:00 | E21: WVI | F21: SI | G21: SI | H21: SI | I21: SI | J21: SI | K21: SI | L21: WVI | M21: MDM
A22: 2024-02-06 | B22: BEY | C22: ZAH | D22: 08:00:00 | E22: WVI | F22: ACF-S | G22: DRC | H22: DRC | I22: DRC
A23: 2024-02-06 | B23: ZAH | C23: BEY | D23: 14:30:00 | E23: WVI | F23: ACF-S | G23: DRC | H23: DRC | I23: DRC
A24: 2024-02-07 | B24: BEY | C24: ZAH | D24: 08:00:00 | E24: WVI | F24: MDM | G24: MDM | H24: MDM | I24: MDM | J24: TDH-L | K24: TDH-L | L24: SI
A25: 2024-02-07 | B25: ZAH | C25: BEY | D25: 14:30:00 | E25: WVI | F25: TDH-L | G25: TDH-L | H25: SI
A26: 2024-02-13 | B26: BEY | C26: ZAH | D26: 08:00:00 | E26: WVI | F26: DRC | G26: DRC | H26: DRC | I26: DRC | J26: ACF-S | K26: ACF-S | L26: ACF-S | M26: ACF-S | N26: TDH-L
A27: 2024-02-13 | B27: ZAH | C27: BEY | D27: 14:30:00 | E27: WVI | F27: DRC | G27: DRC | H27: DRC | I27: DRC | J27: ACF-S
A28: 2024-02-14 | B28: BEY | C28: ZAH | D28: 08:00:00 | E28: WVI | F28: MDM | G28: MDM | H28: ACF-S | I28: ACF-S
A29: 2024-02-14 | B29: ZAH | C29: BEY | D29: 14:30:00 | E29: WVI | F29: MDM | G29: MDM | H29: ACF-S
A30: 2024-02-16 | B30: BEY | C30: ZAH | D30: 08:00:00 | E30: WVI | F30: DRC | G30: DRC | H30: DRC | I30: DRC
A31: 2024-02-16 | B31: ZAH | C31: BEY | D31: 14:30:00 | E31: WVI | F31: DRC | G31: DRC | H31: DRC | I31: DRC
A32: 2024-02-19 | B32: BEY | C32: DOR | D32: 08:00:00 | E32: WVI | F32: MDM | G32: MDM | H32: MDM | I32: ACF-S
A33: 2024-02-19 | B33: DOR | C33: BEY | D33: 14:30:00 | E33: WVI | F33: MDM | G33: MDM | H33: MDM
A34: 2024-02-20 | B34: BEY | C34: ZAH | D34: 08:00:00 | E34: WVI | F34: DRC | G34: DRC | H34: SI
A35: 2024-02-20 | B35: ZAH | C35: BEY | D35: 14:30:00 | E35: WVI | F35: DRC | G35: DRC | H35: SI
A36: 2024-02-21 | B36: BEY | C36: ZAH | D36: 08:00:00 | E36: WVI | F36: MDM | G36: TDH-L | H36: TDH-L
A37: 2024-02-21 | B37: ZAH | C37: BEY | D37: 14:30:00 | E37: WVI | F37: TDH-L | G37: TDH-L | H37: TDH-L
A38: 2024-02-26 | B38: BEY | C38: ZAH | D38: 08:00:00 | E38: WVI | F38: ACF-S | G38: ACF-S
A39: 2024-02-26 | B39: ZAH | C39: BEY | D39: 14:30:00 | E39: WVI | F39: ACF-S | G39: ACF-S | H39: ACF-S
A40: 2024-02-29 | B40: BEY | C40: ZAH | D40: 08:00:00 | E40: WVI | F40: ACF-S | G40: ACF-S | H40: ACF-S | I40: DRC | J40: DRC | K40: DRC | L40: DRC | M40: DRC | N40: TDH-L | O40: TDH-L
A41: 2024-02-29 | B41: ZAH | C41: BEY | D41: 14:30:00 | E41: WVI | F41: ACF-S | G41: ACF-S | H41: ACF-S | I41: DRC | J41: DRC | K41: DRC | L41: DRC | M41: DRC

Sheet 4.3-Costes no-lanzadera
A1: Agencia Lead \ Agencia Pasajera | B1: ACF-S | C1: MDM | D1: HI-F | E1: SI | F1: DRC
A2: ACF-S | B2: 0.00 | C2: 0.00 | D2: 19.34 | E2: 0.00 | F2: 0.00
A3: MDM | B3: 29.00 | C3: 0.00 | D3: 14.50 | E3: 0.00 | F3: 0.00
A4: HI-F | B4: 14.50 | C4: 0.00 | D4: 0.00 | E4: 0.00 | F4: 0.00
A5: SI | B5: 0.00 | C5: 0.00 | D5: 19.34 | E5: 0.00 | F5: 14.50
A6: DRC | B6: 0.00 | C6: 0.00 | D6: 0.00 | E6: 14.50 | F6: 0.00

Sheet 4.3-Costes Lanzadera
A1: Agencia | B1: Pasajeros | C1: Viajes | D1: Coste por agencia | F1: Coste real mensual de la lanzadera
A2: MDM | B2: 50 | C2: 21 | D2: 428.57 | F2: 3,000.00
A3: DRC | B3: 55 | C3: 17 | D3: 428.57
A4: ACF-S | B4: 31 | C4: 18 | D4: 428.57
A5: SI | B5: 21 | C5: 11 | D5: 428.57
A6: ACTED | B6: 3 | C6: 2 | D6: 428.57
A7: WVI | B7: 2 | C7: 2 | D7: 428.57
A8: TDH-L | B8: 12 | C8: 6 | D8: 428.57

Sheet 4.3-Tabla Balance
A1: Organisacion | B1: Costes Lanzadera | C1: Total costes variables | D1: Total contribucion a pagar | E1: Total contribucion a recibir
A2: =IF(ISBLANK('Consolidated list'!A2),"",'Consolidated list'!A2) -> MDM | B2: =_xlfn.XLOOKUP(A2,'4.3-Costes Lanzadera'!A:A,'4.3-Costes Lanzadera'!D:D," ") -> $428.57 | C2: =IF(ISNA(SUM(INDEX('4.3-Costes no-lanzadera'!$B:$Z, MATCH(A2, '4.3-Costes no-lanzadera'!$A:$A, 0), 0))), "", SUM(INDEX('4.3-Costes no-lanzadera'!$B:$Z, MATCH(A2, '4.3-Costes no-lanzadera'!$A:$A, 0), 0))) -> $43.50 | D2: =IF(SUM(B2:C2)=0, "", SUM(B2:C2)) -> $472.07 | E2: =IF(ISNA(SUM(INDEX('4.3-Costes no-lanzadera'!$B:$Z, 0, MATCH(A2, '4.3-Costes no-lanzadera'!$B$1:$Z$1, 0)))), "", SUM(INDEX('4.3-Costes no-lanzadera'!$B:$Z, 0, MATCH(A2, '4.3-Costes no-lanzadera'!$B$1:$Z$1, 0)))) -> $0.00
A3: =IF(ISBLANK('Consolidated list'!A3),"",'Consolidated list'!A3) -> DRC | B3: =_xlfn.XLOOKUP(A3,'4.3-Costes Lanzadera'!A:A,'4.3-Costes Lanzadera'!D:D," ") -> $428.57 | C3: =IF(ISNA(SUM(INDEX('4.3-Costes no-lanzadera'!$B:$Z, MATCH(A3, '4.3-Costes no-lanzadera'!$A:$A, 0), 0))), "", SUM(INDEX('4.3-Costes no-lanzadera'!$B:$Z, MATCH(A3, '4.3-Costes no-lanzadera'!$A:$A, 0), 0))) -> $14.50 | D3: =IF(SUM(B3:C3)=0, "", SUM(B3:C3)) -> $443.07 | E3: =IF(ISNA(SUM(INDEX('4.3-Costes no-lanzadera'!$B:$Z, 0, MATCH(A3, '4.3-Costes no-lanzadera'!$B$1:$Z$1, 0)))), "", SUM(INDEX('4.3-Costes no-lanzadera'!$B:$Z, 0, MATCH(A3, '4.3-Costes no-lanzadera'!$B$1:$Z$1, 0)))) -> $14.50
A4: =IF(ISBLANK('Consolidated list'!A4),"",'Consolidated list'!A4) -> ACF-S | B4: =_xlfn.XLOOKUP(A4,'4.3-Costes Lanzadera'!A:A,'4.3-Costes Lanzadera'!D:D," ") -> $428.57 | C4: =IF(ISNA(SUM(INDEX('4.3-Costes no-lanzadera'!$B:$Z, MATCH(A4, '4.3-Costes no-lanzadera'!$A:$A, 0), 0))), "", SUM(INDEX('4.3-Costes no-lanzadera'!$B:$Z, MATCH(A4, '4.3-Costes no-lanzadera'!$A:$A, 0), 0))) -> $19.34 | D4: $447.91 | E4: =IF(ISNA(SUM(INDEX('4.3-Costes no-lanzadera'!$B:$Z, 0, MATCH(A4, '4.3-Costes no-lanzadera'!$B$1:$Z$1, 0)))), "", SUM(INDEX('4.3-Costes no-lanzadera'!$B:$Z, 0, MATCH(A4, '4.3-Costes no-lanzadera'!$B$1:$Z$1, 0)))) -> $43.50
A5: =IF(ISBLANK('Consolidated list'!A5),"",'Consolidated list'!A5) -> SI | B5: =_xlfn.XLOOKUP(A5,'4.3-Costes Lanzadera'!A:A,'4.3-Costes Lanzadera'!D:D," ") -> $428.57 | C5: =IF(ISNA(SUM(INDEX('4.3-Costes no-lanzadera'!$B:$Z, MATCH(A5, '4.3-Costes no-lanzadera'!$A:$A, 0), 0))), "", SUM(INDEX('4.3-Costes no-lanzadera'!$B:$Z, MATCH(A5, '4.3-Costes no-lanzadera'!$A:$A, 0), 0))) -> $33.84 | D5: $462.41 | E5: =IF(ISNA(SUM(INDEX('4.3-Costes no-lanzadera'!$B:$Z, 0, MATCH(A5, '4.3-Costes no-lanzadera'!$B$1:$Z$1, 0)))), "", SUM(INDEX('4.3-Costes no-lanzadera'!$B:$Z, 0, MATCH(A5, '4.3-Costes no-lanzadera'!$B$1:$Z$1, 0)))) -> $14.50
A6: =IF(ISBLANK('Consolidated list'!A6),"",'Consolidated list'!A6) -> ACTED | B6: =_xlfn.XLOOKUP(A6,'4.3-Costes Lanzadera'!A:A,'4.3-Costes Lanzadera'!D:D," ") -> $428.57 | C6: =IF(ISNA(SUM(INDEX('4.3-Costes no-lanzadera'!$B:$Z, MATCH(A6, '4.3-Costes no-lanzadera'!$A:$A, 0), 0))), "", SUM(INDEX('4.3-Costes no-lanzadera'!$B:$Z, MATCH(A6, '4.3-Costes no-lanzadera'!$A:$A, 0), 0))) ->  | D6: $428.57 | E6: =IF(ISNA(SUM(INDEX('4.3-Costes no-lanzadera'!$B:$Z, 0, MATCH(A6, '4.3-Costes no-lanzadera'!$B$1:$Z$1, 0)))), "", SUM(INDEX('4.3-Costes no-lanzadera'!$B:$Z, 0, MATCH(A6, '4.3-Costes no-lanzadera'!$B$1:$Z$1, 0)))) -> 
A7: =IF(ISBLANK('Consolidated list'!A7),"",'Consolidated list'!A7) -> WVI | B7: =_xlfn.XLOOKUP(A7,'4.3-Costes Lanzadera'!A:A,'4.3-Costes Lanzadera'!D:D," ") -> $428.57 | C7: =IF(ISNA(SUM(INDEX('4.3-Costes no-lanzadera'!$B:$Z, MATCH(A7, '4.3-Costes no-lanzadera'!$A:$A, 0), 0))), "", SUM(INDEX('4.3-Costes no-lanzadera'!$B:$Z, MATCH(A7, '4.3-Costes no-lanzadera'!$A:$A, 0), 0))) ->  | D7: $428.57 | E7: =IF(ISNA(SUM(INDEX('4.3-Costes no-lanzadera'!$B:$Z, 0, MATCH(A7, '4.3-Costes no-lanzadera'!$B$1:$Z$1, 0)))), "", SUM(INDEX('4.3-Costes no-lanzadera'!$B:$Z, 0, MATCH(A7, '4.3-Costes no-lanzadera'!$B$1:$Z$1, 0)))) -> 
A8: =IF(ISBLANK('Consolidated list'!A8),"",'Consolidated list'!A8) -> TDH-L | B8: =_xlfn.XLOOKUP(A8,'4.3-Costes Lanzadera'!A:A,'4.3-Costes Lanzadera'!D:D," ") -> $428.57 | C8: =IF(ISNA(SUM(INDEX('4.3-Costes no-lanzadera'!$B:$Z, MATCH(A8, '4.3-Costes no-lanzadera'!$A:$A, 0), 0))), "", SUM(INDEX('4.3-Costes no-lanzadera'!$B:$Z, MATCH(A8, '4.3-Costes no-lanzadera'!$A:$A, 0), 0))) ->  | D8: $428.57 | E8: =IF(ISNA(SUM(INDEX('4.3-Costes no-lanzadera'!$B:$Z, 0, MATCH(A8, '4.3-Costes no-lanzadera'!$B$1:$Z$1, 0)))), "", SUM(INDEX('4.3-Costes no-lanzadera'!$B:$Z, 0, MATCH(A8, '4.3-Costes no-lanzadera'!$B$1:$Z$1, 0)))) -> 
A9: =IF(ISBLANK('4.3-Costes no-lanzadera'!A9),"",'4.3-Costes no-lanzadera'!A9) ->  | B9: =_xlfn.XLOOKUP(A9,'4.3-Costes Lanzadera'!A:A,'4.3-Costes Lanzadera'!D:D," ") ->  | C9: =IF(ISNA(SUM(INDEX('4.3-Costes no-lanzadera'!$B:$Z, MATCH(A9, '4.3-Costes no-lanzadera'!$A:$A, 0), 0))), "", SUM(INDEX('4.3-Costes no-lanzadera'!$B:$Z, MATCH(A9, '4.3-Costes no-lanzadera'!$A:$A, 0), 0))) ->  | E9: =IF(ISNA(SUM(INDEX('4.3-Costes no-lanzadera'!$B:$Z, 0, MATCH(A9, '4.3-Costes no-lanzadera'!$B$1:$Z$1, 0)))), "", SUM(INDEX('4.3-Costes no-lanzadera'!$B:$Z, 0, MATCH(A9, '4.3-Costes no-lanzadera'!$B$1:$Z$1, 0)))) -> 
A10: =IF(ISBLANK('4.3-Costes no-lanzadera'!A10),"",'4.3-Costes no-lanzadera'!A10) ->  | B10: =_xlfn.XLOOKUP(A10,'4.3-Costes Lanzadera'!A:A,'4.3-Costes Lanzadera'!D:D," ") ->  | C10: =IF(ISNA(SUM(INDEX('4.3-Costes no-lanzadera'!$B:$Z, MATCH(A10, '4.3-Costes no-lanzadera'!$A:$A, 0), 0))), "", SUM(INDEX('4.3-Costes no-lanzadera'!$B:$Z, MATCH(A10, '4.3-Costes no-lanzadera'!$A:$A, 0), 0))) ->  | E10: =IF(ISNA(SUM(INDEX('4.3-Costes no-lanzadera'!$B:$Z, 0, MATCH(A10, '4.3-Costes no-lanzadera'!$B$1:$Z$1, 0)))), "", SUM(INDEX('4.3-Costes no-lanzadera'!$B:$Z, 0, MATCH(A10, '4.3-Costes no-lanzadera'!$B$1:$Z$1, 0)))) -> 
A11: =IF(ISBLANK('4.3-Costes no-lanzadera'!A11),"",'4.3-Costes no-lanzadera'!A11) ->  | B11: =_xlfn.XLOOKUP(A11,'4.3-Costes Lanzadera'!A:A,'4.3-Costes Lanzadera'!D:D," ") ->  | C11: =IF(ISNA(SUM(INDEX('4.3-Costes no-lanzadera'!$B:$Z, MATCH(A11, '4.3-Costes no-lanzadera'!$A:$A, 0), 0))), "", SUM(INDEX('4.3-Costes no-lanzadera'!$B:$Z, MATCH(A11, '4.3-Costes no-lanzadera'!$A:$A, 0), 0))) ->  | E11: =IF(ISNA(SUM(INDEX('4.3-Costes no-lanzadera'!$B:$Z, 0, MATCH(A11, '4.3-Costes no-lanzadera'!$B$1:$Z$1, 0)))), "", SUM(INDEX('4.3-Costes no-lanzadera'!$B:$Z, 0, MATCH(A11, '4.3-Costes no-lanzadera'!$B$1:$Z$1, 0)))) -> 
A12: =IF(ISBLANK('4.3-Costes no-lanzadera'!A12),"",'4.3-Costes no-lanzadera'!A12) ->  | B12: =_xlfn.XLOOKUP(A12,'4.3-Costes Lanzadera'!A:A,'4.3-Costes Lanzadera'!D:D," ") ->  | C12: =IF(ISNA(SUM(INDEX('4.3-Costes no-lanzadera'!$B:$Z, MATCH(A12, '4.3-Costes no-lanzadera'!$A:$A, 0), 0))), "", SUM(INDEX('4.3-Costes no-lanzadera'!$B:$Z, MATCH(A12, '4.3-Costes no-lanzadera'!$A:$A, 0), 0))) ->  | E12: =IF(ISNA(SUM(INDEX('4.3-Costes no-lanzadera'!$B:$Z, 0, MATCH(A12, '4.3-Costes no-lanzadera'!$B$1:$Z$1, 0)))), "", SUM(INDEX('4.3-Costes no-lanzadera'!$B:$Z, 0, MATCH(A12, '4.3-Costes no-lanzadera'!$B$1:$Z$1, 0)))) -> 
A13: =IF(ISBLANK('4.3-Costes no-lanzadera'!A13),"",'4.3-Costes no-lanzadera'!A13) ->  | B13: =_xlfn.XLOOKUP(A13,'4.3-Costes Lanzadera'!A:A,'4.3-Costes Lanzadera'!D:D," ") ->  | C13: =IF(ISNA(SUM(INDEX('4.3-Costes no-lanzadera'!$B:$Z, MATCH(A13, '4.3-Costes no-lanzadera'!$A:$A, 0), 0))), "", SUM(INDEX('4.3-Costes no-lanzadera'!$B:$Z, MATCH(A13, '4.3-Costes no-lanzadera'!$A:$A, 0), 0))) ->  | E13: =IF(ISNA(SUM(INDEX('4.3-Costes no-lanzadera'!$B:$Z, 0, MATCH(A13, '4.3-Costes no-lanzadera'!$B$1:$Z$1, 0)))), "", SUM(INDEX('4.3-Costes no-lanzadera'!$B:$Z, 0, MATCH(A13, '4.3-Costes no-lanzadera'!$B$1:$Z$1, 0)))) -> 
A14: =IF(ISBLANK('4.3-Costes no-lanzadera'!A14),"",'4.3-Costes no-lanzadera'!A14) ->  | B14: =_xlfn.XLOOKUP(A14,'4.3-Costes Lanzadera'!A:A,'4.3-Costes Lanzadera'!D:D," ") ->  | C14: =IF(ISNA(SUM(INDEX('4.3-Costes no-lanzadera'!$B:$Z, MATCH(A14, '4.3-Costes no-lanzadera'!$A:$A, 0), 0))), "", SUM(INDEX('4.3-Costes no-lanzadera'!$B:$Z, MATCH(A14, '4.3-Costes no-lanzadera'!$A:$A, 0), 0))) ->  | E14: =IF(ISNA(SUM(INDEX('4.3-Costes no-lanzadera'!$B:$Z, 0, MATCH(A14, '4.3-Costes no-lanzadera'!$B$1:$Z$1, 0)))), "", SUM(INDEX('4.3-Costes no-lanzadera'!$B:$Z, 0, MATCH(A14, '4.3-Costes no-lanzadera'!$B$1:$Z$1, 0)))) -> 
A15: =IF(ISBLANK('4.3-Costes no-lanzadera'!A15),"",'4.3-Costes no-lanzadera'!A15) ->  | B15: =_xlfn.XLOOKUP(A15,'4.3-Costes Lanzadera'!A:A,'4.3-Costes Lanzadera'!D:D," ") -> 
A16: =IF(ISBLANK('4.3-Costes no-lanzadera'!A16),"",'4.3-Costes no-lanzadera'!A16) -> 
A17: =IF(ISBLANK('4.3-Costes no-lanzadera'!A17),"",'4.3-Costes no-lanzadera'!A17) -> 
A18: =IF(ISBLANK('4.3-Costes no-lanzadera'!A18),"",'4.3-Costes no-lanzadera'!A18) -> 
A21: to be mentionned on that page:
A22: Period covered:

Sheet 4.4-Solicitud de reembolso
C4: A: | D4: …. | K4: Fecha:
C5: De: XXXXX Ref:
C7: Reembolso de gastos
C9: De conformidad con el Acuerdo firmado al que se hace referencia….. de fecha…. Y según el presupuesto aprobado,
C12: Este es para certificar que el servicio que se está... ha sido entregado exitosamente y se adjunta el informe de actividad.
C15: …. por lo que se solicita el reembolso de USD….-
C19: ___________________________
C20: Firma del funcionario autorizado: Nombre del funcionario autorizado Fecha
H22: Sello de la ONG

Sheet Consolidated list (hidden)
A2: MDM
A3: DRC
A4: ACF-S
A5: SI
A6: ACTED
A7: WVI
A8: TDH-L
A9: HI-F
